bitfinex-derivatives/quotes_SOLF0:USTF0_20250914
["timestamp","ask_amount","ask_price","bid_price","bid_amount"]
[1757812754300,6.57,243.81,243.67,6.05]
[1757812754507,6.57,243.81,243.7,6.05]
[1757812755310,6.57,243.9,243.74,6.05]
[1757812756109,6.57,243.9,243.75,6.05]
[1757812757204,6.57,243.9,243.75,7.38335467]
[1757812757511,6.57,243.9,243.75,55.12335467]
[1757812757811,6.57,243.9,243.76,6.05]
[1757812759107,6.57,243.9,243.75,1.33335467]
[1757812759307,6.57,243.9,243.76,6.05]
[1757812759612,6.57,243.9,243.77,6.05]
[1757812759910,1.33335467,243.92,243.74,51.06049569]
[1757812760113,6.57,243.91,243.74,6.05]
[1757812761109,6.57,243.91,243.75,6.05]
[1757812761614,6.57,243.91,243.77,6.05]
[1757812763411,6.57,243.91,243.79,6.05]
[1757812763808,6.57,243.91,243.79,45.95]
[1757812764016,6.57,243.91,243.79,6.05]
[1757812764507,1.33335467,243.84,243.74,12.29705968]
[1757812764709,6.57,243.78,243.68,6.05]
[1757812768017,6.57,243.78,243.68,18.25049831]
[1757812769511,6.57,243.78,243.69,6.05]
[1757812770814,6.57,243.78,243.52,63.49345701]
[1757812770815,1.33335467,243.72,243.57,6.05]
[1757812771020,6.75,243.73,243.57,6.05]
[1757812773016,1.33335467,243.74,243.57,16.49]
[1757812773218,6.75,243.73,243.57,28.51381967]
[1757812773417,1.33335467,243.74,243.57,28.51381967]
[1757812773818,6.75,243.73,243.57,28.51381967]
[1757812774419,1.33335467,243.74,243.57,28.51381967]
[1757812774723,6.75,243.73,243.57,28.51381967]
[1757812776421,6.75,243.73,243.58,6.05]
[1757812778619,6.75,243.73,243.59,6.05]
[1757812779826,6.75,243.78,243.63,1.33335467]
[1757812780025,6.75,243.78,243.64,6.05]
[1757812782633,6.75,243.78,243.65,6.05]
[1757812787036,6.75,243.78,243.66,6.05]
[1757812790235,6.75,243.78,243.67,102.43]
[1757812791040,6.75,243.78,243.69,6.05]
[1757812792340,6.48,243.84,243.69,6.05]
[1757812793532,42.66,243.85,243.69,6.05]
[1757812793533,6.48,243.8,243.69,6.05]
[1757812793733,6.48,243.8,243.65,48.76]
[1757812794037,6.48,243.8,243.65,54.81]
[1757812794233,6.48,243.8,243.65,103.33]
[1757812794641,1.33335467,243.81,243.65,103.33]
[1757812795342,6.48,243.8,243.65,103.33]
[1757812795544,1.33335467,243.81,243.65,103.33]
[1757812796242,1.33335467,243.81,243.65,107.84981402]
[1757812796444,6.48,243.8,243.65,107.84981402]
[1757812796641,1.33335467,243.81,243.65,107.84981402]
[1757812796841,6.48,243.8,243.65,114.06981402]
[1757812797346,1.33335467,243.81,243.65,114.06981402]
[1757812797644,6.67,243.8,243.65,114.06981402]
[1757812797836,1.33335467,243.81,243.65,114.06981402]
[1757812798036,6.67,243.8,243.65,114.06981402]
[1757812798245,1.33335467,243.81,243.65,114.06981402]
[1757812798743,6.67,243.8,243.65,114.06981402]
[1757812798944,6.67,243.8,243.65,6.05]
[1757812799135,6.67,243.76,243.65,6.05]
[1757812803445,1.33335467,243.73,243.61,6.04]
[1757812803755,6.67,243.72,243.61,6.04]
[1757812804147,6.67,243.72,243.59,51.51981402]
[1757812804148,6.67,243.72,243.62,10.55981402]
[1757812804752,1.33335467,243.77,243.63,6.04]
[1757812804946,6.67,243.76,243.63,6.04]
[1757812806253,6.67,243.76,243.63,10.55981402]
[1757812808355,0.85306938,243.73,243.64,4.51981402]
[1757812808557,7.52306938,243.73,243.64,4.51981402]
[1757812808753,0.85306938,243.7,243.64,4.51981402]
[1757812808951,7.52306938,243.7,243.63,10.55981402]
[1757812809155,7.52306938,243.7,243.63,6.04]
[1757812810464,7.52306938,243.7,243.63,10.55981402]
[1757812810757,7.52306938,243.7,243.63,6.04]
[1757812810956,7.52306938,243.7,243.6,4.51981402]
[1757812811560,6.67,243.63,243.55,280.11981402]
[1757812812362,0.85306938,243.61,243.54,6.04]
[1757812813265,6.67,243.6,243.52,4.51981402]
[1757812813464,6.67,243.6,243.5,109.34]
[1757812813465,6.67,243.6,243.5,113.85981402]
[1757812813861,0.85306938,243.61,243.5,10.55981402]
[1757812814066,6.67,243.6,243.5,4.51981402]
[1757812814262,6.67,243.6,243.49,4.51981402]
[1757812814462,6.67,243.6,243.48,5.3728834]
[1757812814768,6.67,243.57,243.48,0.85306938]
[1757812815167,6.67,243.57,243.47,16.61383882]
[1757812815661,6.67,243.57,243.47,4.51981402]
[1757812815966,6.67,243.54,243.42,0.85306938]
[1757812816367,6.67,243.51,243.41,281.64]
[1757812819368,6.67,243.67,243.45,0.85306938]
[1757812819669,6.67,243.57,243.46,6.04]
[1757812822875,6.67,243.57,243.49,6.04]
[1757812826981,6.67,243.57,243.49,6.89306938]
[1757812827775,6.75,243.65,243.53,6.06]
[1757812827983,6.75,243.65,243.55,0.85306938]
[1757812828980,6.75,243.65,243.56,6.06]
[1757812831675,6.75,243.61,243.49,0.85306938]
[1757812831878,6.75,243.58,243.48,6.06]
[1757812832082,6.75,243.55,243.44,6.06]
[1757812835582,6.75,243.55,243.46,0.85306938]
[1757812837185,6.75,243.55,243.44,6.06]
[1757812837482,6.75,243.55,243.46,0.85306938]
[1757812837682,6.75,243.55,243.46,6.06]
[1757812837980,6.75,243.55,243.46,6.91306938]
[1757812840578,6.75,243.59,243.5,6.06]
[1757812841185,6.75,243.59,243.52,0.85306938]
[1757812841382,6.75,243.59,243.49,48.66]
[1757812841589,6.75,243.58,243.46,6.06]
[1757812841778,6.75,243.55,243.44,0.85306938]
[1757812841983,0.85306938,243.56,243.42,87.03306938]
[1757812842181,6.75,243.55,243.42,87.03306938]
[1757812843081,0.85306938,243.56,243.42,87.03306938]
[1757812843383,0.85306938,243.5,243.38,47.3979421]
[1757812843590,0.85306938,243.47,243.38,47.3979421]
[1757812843782,6.75,243.46,243.38,47.3979421]
[1757812847284,6.75,243.46,243.34,6.91306938]
[1757812847489,6.75,243.46,243.37,0.85306938]
[1757812847686,6.75,243.46,243.38,6.06]
[1757812848389,6.75,243.61,243.38,6.06]
[1757812848587,6.75,243.51,243.38,6.06]
[1757812848885,6.75,243.51,243.4,0.85306938]
[1757812850691,6.75,243.51,243.38,6.91306938]
[1757812851884,6.75,243.51,243.42,6.06]
[1757812858291,6.96,243.56,243.44,0.85306938]
[1757812858492,6.96,243.56,243.48,6.05]
[1757812858793,6.96,243.56,243.49,0.85306938]
[1757812860889,6.96,243.56,243.48,6.05]
[1757812861090,6.96,243.56,243.48,6.90306938]
[1757812862797,6.96,243.56,243.48,11.4228834]
[1757812863485,6.96,243.56,243.48,6.90306938]
[1757812868400,6.96,243.56,243.48,6.05]
[1757812869500,6.96,243.56,243.48,10.56981402]
[1757812869893,6.96,243.62,243.53,4.51981402]
[1757812870095,6.96,243.62,243.53,6.05]
[1757812873092,6.96,243.62,243.51,4.51981402]
[1757812873300,6.96,243.66,243.5,4.51981402]
[1757812873500,74.51404955,243.69,243.49,6.05]
[1757812873501,6.96,243.62,243.49,6.05]
[1757812873803,86.82404955,243.69,243.43,4.51981402]
[1757812873804,6.96,243.54,243.43,4.51981402]
[1757812874302,6.96,243.54,243.42,4.51981402]
[1757812874502,6.96,243.54,243.43,6.05]
[1757812875295,6.96,243.54,243.43,10.56981402]
[1757812876306,6.96,243.54,243.46,4.51981402]
[1757812876599,6.96,243.54,243.45,4.51981402]
[1757812877906,6.96,243.54,243.44,10.56981402]
[1757812878107,6.96,243.54,243.45,4.51981402]
[1757812880309,6.96,243.55,243.44,6.05]
[1757812880899,6.96,243.55,243.41,4.51981402]
[1757812881205,6.96,243.51,243.38,4.51981402]
[1757812884304,6.96,243.47,243.37,16.62691092]
[1757812884498,1.33446196,243.44,243.34,4.51981402]
[1757812884807,6.96,243.43,243.33,4.51981402]
[1757812885204,6.96,243.43,243.31,4.51981402]
[1757812885411,1.33446196,243.4,243.3,4.51981402]
[1757812885607,6.96,243.39,243.29,4.51981402]
[1757812885806,1.33446196,243.4,243.28,10.56981402]
[1757812886010,6.96,243.39,243.29,4.51981402]
[1757812886201,6.96,243.39,243.28,10.56981402]
[1757812886407,1.33446196,243.4,243.28,10.56981402]
[1757812886608,6.96,243.39,243.28,6.05]
[1757812886807,6.96,243.39,243.26,4.51981402]
[1757812887111,1.33446196,243.4,243.25,62.23981402]
[1757812887312,6.96,243.39,243.25,62.23981402]
[1757812887611,1.33446196,243.4,243.25,62.23981402]
[1757812887807,6.58,243.39,243.26,4.51981402]
[1757812888208,6.58,243.39,243.27,6.06]
[1757812889403,6.58,243.39,243.25,4.51981402]
[1757812889610,1.33446196,243.4,243.23,10.57981402]
[1757812890106,1.33446196,243.4,243.23,6.06]
[1757812890411,6.58,243.39,243.23,6.06]
[1757812891213,6.58,243.35,243.23,6.06]
[1757812892910,1.33446196,243.36,243.18,57.71981402]
[1757812893311,6.58,243.35,243.18,65.58954477]
[1757812893711,1.33446196,243.36,243.18,65.58954477]
[1757812893911,6.58,243.35,243.18,65.58954477]
[1757812894115,1.33446196,243.32,243.18,53.2]
[1757812894308,6.58,243.31,243.18,53.2]
[1757812894816,1.33446196,243.32,243.18,53.2]
[1757812895116,6.58,243.31,243.18,53.2]
[1757812899123,6.58,243.33,243.18,53.2]
[1757812899322,6.58,243.32,243.18,53.2]
[1757812899527,6.58,243.33,243.18,53.2]
[1757812900028,6.58,243.32,243.18,53.2]
[1757812900225,1.33446196,243.31,243.18,53.2]
[1757812900422,6.58,243.3,243.18,53.2]
[1757812900818,6.58,243.3,243.19,6.06]
[1757812901627,6.38,243.38,243.21,6.06]
[1757812901827,6.58,243.37,243.21,6.06]
[1757812902124,6.58,243.37,243.22,1.33446196]
[1757812902328,6.58,243.37,243.23,6.06]
[1757812911932,1.33446196,243.34,243.17,6.06]
[1757812912134,1.33446196,243.34,243.17,18.63004909]
[1757812912432,6.86,243.32,243.17,6.06]
[1757812914335,6.86,243.32,243.17,18.26265056]
[1757812914631,22.5,243.35,243.04,6.06]
[1757812914632,6.86,243.2,243.04,6.06]
[1757812914836,6.86,243.15,242.95,6.06]
[1757812915038,6.86,243.15,242.95,7.39446196]
[1757812915434,6.86,243.15,242.95,6.06]
[1757812916934,6.86,243.11,242.95,6.06]
[1757812918137,6.72,243.07,242.91,6.08]
[1757812921238,6.72,243.07,242.91,7.41446196]
[1757812923545,6.72,243.07,242.91,6.08]
[1757812925645,1.33446196,243.04,242.91,6.08]
[1757812925845,6.72,243.03,242.91,6.08]
[1757812927745,1.33446196,243.04,242.83,6.08]
[1757812927938,6.72,242.95,242.83,6.08]
[1757812928549,6.72,242.95,242.63,12.31]
[1757812928550,6.72,242.91,242.78,6.08]
[1757812940754,6.72,242.96,242.78,6.08]
[1757812940956,6.72,242.96,242.79,3.7048]
[1757812941153,6.72,242.96,242.8,6.08]
[1757812942446,6.72,242.96,242.8,9.7846]
[1757812942646,6.72,242.96,242.81,6.08]
[1757812944342,6.72,242.96,242.82,3.7043]
[1757812944546,6.72,242.96,242.83,6.08]
[1757812945756,6.72,242.96,242.77,6.08]
[1757812948257,6.72,242.96,242.78,6.09]
[1757812949257,6.72,242.96,242.82,6.09]
[1757812950054,12.31,243.08,242.84,6.09]
[1757812950055,6.94,243.04,242.84,6.09]
[1757812950258,2.23737013,243.05,242.84,6.09]
[1757812950259,6.94,243.02,242.84,6.09]
[1757812951056,6.94,242.99,242.84,6.09]
[1757812952965,49.26,243.06,242.88,6.09]
[1757812953558,6.94,243.01,242.82,6.09]
[1757812954967,43.34,243.0,242.82,6.09]
[1757812955267,6.94,242.99,242.82,6.09]
[1757812959266,2.81154168,242.98,242.82,6.09]
[1757812959466,2.81154168,242.97,242.82,6.09]
[1757812959670,6.94,242.99,242.82,6.09]
[1757812959974,2.8116882,242.98,242.82,6.09]
[1757812960269,2.8116882,242.97,242.82,6.09]
[1757812960567,2.8116882,242.96,242.82,6.09]
[1757812960762,6.94,242.99,242.82,6.09]
[1757812960962,2.81291675,242.98,242.82,6.09]
[1757812961165,2.81291675,242.97,242.82,6.09]
[1757812961468,2.81291675,242.96,242.82,6.09]
[1757812961660,6.94,242.99,242.82,6.09]
[1757812961861,2.81371522,242.98,242.82,6.09]
[1757812962059,38.9,243.01,242.82,6.09]
[1757812962060,6.94,242.96,242.82,6.09]
[1757812969375,6.94,242.96,242.82,4.59652511]
[1757812969572,6.94,242.96,242.83,6.09]
[1757812970373,0.85873562,242.93,242.83,6.09]
[1757812972480,6.94,242.96,242.83,6.09]
[1757812972677,6.94,242.96,242.84,4.59652511]
[1757812973381,6.94,242.96,242.85,6.09]
[1757812974381,6.94,242.96,242.85,10.68652511]
[1757812977284,6.94,242.96,242.87,4.59652511]
[1757812977787,6.94,242.96,242.88,6.08]
[1757812978083,2.23638,242.99,242.88,6.08]
[1757812980584,6.51,243.0,242.88,6.08]
[1757812980782,6.51,243.08,242.93,4.59652511]
[1757812980991,6.51,243.08,242.94,10.67652511]
[1757812981194,6.51,243.06,242.95,4.59652511]
[1757812981494,6.51,243.06,242.94,6.08]
[1757812981693,6.51,243.06,242.9,10.67652511]
[1757812981883,2.23638,243.07,242.9,10.67652511]
[1757812982284,6.51,243.06,242.9,10.67652511]
[1757812983192,2.23638,243.07,242.9,10.67652511]
[1757812983392,6.51,243.06,242.9,10.67652511]
[1757812983788,2.23638,243.07,242.9,10.67652511]
[1757812984191,2.23638,243.07,242.9,6.08]
[1757812984390,6.51,243.06,242.9,10.67652511]
[1757812984590,2.23638,243.07,242.9,10.67652511]
[1757812984893,6.51,243.06,242.9,10.67652511]
[1757812985496,2.23638,243.07,242.9,10.67652511]
[1757812985695,6.51,243.06,242.9,6.08]
[1757812985992,6.51,243.01,242.85,6.08]
[1757812986196,6.51,242.96,242.85,10.67652511]
[1757812986691,6.51,242.96,242.86,4.59652511]
[1757812986995,6.51,242.96,242.85,6.08]
[1757812986996,6.51,242.96,242.85,10.67652511]
[1757812987595,6.51,242.96,242.87,6.08]
[1757812989096,2.23638,243.0,242.87,4.59652511]
[1757812989396,2.23638,243.0,242.89,4.59652511]
[1757812990205,6.51,242.99,242.88,10.67652511]
[1757812990697,6.51,242.99,242.88,6.08]
[1757812990896,6.51,242.99,242.88,10.67652511]
[1757812991097,6.51,242.99,242.89,4.59652511]
[1757812991499,6.51,242.99,242.9,4.59652511]
[1757812992195,6.51,242.99,242.89,4.59652511]
[1757812993196,6.51,242.99,242.9,4.59652511]
[1757812994504,7.85135638,242.99,242.9,4.59652511]
[1757812995100,7.85135638,242.99,242.88,10.67652511]
[1757812995693,7.85135638,242.99,242.89,4.59652511]
[1757812996900,7.85135638,242.99,242.88,10.67652511]
[1757812997100,7.85135638,242.99,242.88,6.08]
[1757812998304,6.51,242.94,242.84,4.59652511]
[1757812998501,6.51,242.94,242.85,4.59652511]
[1757812999602,6.51,242.94,242.86,4.59652511]
[1757812999901,6.51,242.94,242.85,4.59652511]
[1757813000101,7.85135638,242.99,242.86,10.67652511]
[1757813000303,0.71646216,243.05,242.86,10.67652511]
[1757813000304,6.51,242.94,242.86,10.67652511]
[1757813000501,6.51,242.94,242.86,6.08]
[1757813001898,1.34135638,243.0,242.86,6.08]
[1757813001899,6.51,242.99,242.86,6.08]
[1757813002102,6.51,242.99,242.88,6.08]
[1757813002503,6.51,242.99,242.88,4.59652511]
[1757813002804,6.51,242.99,242.89,10.67652511]
[1757813003302,6.51,242.98,242.88,4.59652511]
[1757813003499,6.51,242.98,242.85,10.67652511]
[1757813004197,6.51,242.98,242.85,6.08]
[1757813004606,1.34135638,242.97,242.85,6.08]
[1757813004904,1.34135638,242.97,242.85,10.67652511]
[1757813007103,1.34135638,242.97,242.85,4.59652511]
[1757813007302,1.34135638,242.97,242.87,4.59652511]
[1757813007800,1.34135638,242.97,242.86,10.67652511]
[1757813008005,1.34135638,242.97,242.87,4.59652511]
[1757813008304,6.51,242.98,242.87,4.59652511]
[1757813009807,1.34135638,243.0,242.88,4.59652511]
[1757813010008,7.05,243.02,242.9,6.08]
[1757813011104,7.05,243.02,242.9,10.67652511]
[1757813011602,1.34135638,243.05,242.92,6.08]
[1757813011908,7.05,243.06,242.93,10.67652511]
[1757813012105,7.05,243.06,242.94,4.59652511]
[1757813012302,7.05,243.06,242.94,10.67652511]
[1757813012610,7.05,243.06,242.97,6.08]
[1757813013312,276.32,243.09,242.98,6.08]
[1757813014409,7.05,243.11,242.98,10.67652511]
[1757813014712,7.05,243.11,243.0,6.08]
[1757813015212,7.05,243.08,243.0,6.08]
[1757813015412,7.05,243.08,242.97,4.59652511]
[1757813015615,7.05,243.08,242.95,6.08]
[1757813015812,7.05,243.04,242.95,6.08]
[1757813020616,7.05,243.0,242.89,10.67652511]
[1757813020816,7.05,243.0,242.89,6.08]
[1757813021017,7.05,243.0,242.89,10.67652511]
[1757813021719,7.05,243.0,242.89,6.08]
[1757813028916,1.34135638,242.99,242.85,6.88522215]
[1757813029117,7.05,242.94,242.84,6.08]
[1757813031416,7.05,242.97,242.84,6.08]
[1757813031722,7.05,242.97,242.85,3.7039]
[1757813031925,7.05,242.97,242.86,6.08]
[1757813032621,1.34135638,243.02,242.87,3.7036]
[1757813032826,8.29135638,243.02,242.88,6.08]
[1757813033324,8.29135638,243.02,242.89,3.7033]
[1757813033522,6.95,243.02,242.9,6.08]
[1757813033820,8.29135638,243.02,242.87,6.88522215]
[1757813034022,6.95,242.97,242.85,6.08]
[1757813039427,6.95,242.97,242.86,3.7037]
[1757813039731,6.95,242.97,242.85,6.08]
[1757813042227,6.95,242.97,242.8,12.96522215]
[1757813042433,6.61,242.93,242.8,6.08]
[1757813042830,23.87,242.93,242.78,6.08]
[1757813043031,6.61,242.93,242.78,6.08]
[1757813043734,6.61,242.93,242.79,12.96522215]
[1757813044736,6.61,242.93,242.81,6.08]
[1757813044937,6.61,242.99,242.82,6.08]
[1757813045137,6.61,242.99,242.84,1.34135638]
[1757813045438,6.61,242.99,242.86,6.08]
[1757813045737,6.61,242.97,242.82,6.08]
[1757813046132,6.61,242.93,242.82,6.08]
[1757813046729,6.61,242.93,242.78,6.88522215]
[1757813046935,1.34135638,242.9,242.77,6.08]
[1757813047132,6.61,242.89,242.77,6.08]
[1757813050743,6.61,242.89,242.77,3.7051]
[1757813050945,6.61,242.89,242.78,6.08]
[1757813051642,9.98,242.94,242.78,6.08]
[1757813051843,1.34135638,242.93,242.78,6.08]
[1757813052238,1.34135638,242.89,242.76,12.16646514]
[1757813052444,0.85929057,242.85,242.74,6.9]
[1757813053644,6.61,242.84,242.74,6.9]
[1757813054747,6.61,242.84,242.76,0.85929057]
[1757813055455,7.46929057,242.88,242.77,6.9]
[1757813055645,7.46929057,242.88,242.79,0.85929057]
[1757813056252,6.61,242.88,242.8,6.9]
[1757813058947,35.36,242.94,242.76,12.1220079]
[1757813058948,0.85929057,242.96,242.83,6.9]
[1757813059155,7.46929057,242.96,242.85,0.85929057]
[1757813060150,7.46929057,242.96,242.86,6.9]
[1757813062547,7.46929057,242.96,242.82,7.75929057]
[1757813062951,6.61,242.92,242.82,7.75929057]
[1757813063457,0.85929057,242.9,242.82,6.9]
[1757813064458,6.61,242.92,242.82,6.9]
[1757813064758,0.85929057,242.96,242.86,6.9]
[1757813065760,6.61,242.97,242.88,0.85929057]
[1757813065959,6.61,242.97,242.89,6.9]
[1757813067263,7.46929057,243.01,242.89,6.9]
[1757813069258,7.05,242.97,242.89,6.9]
[1757813069462,0.85929057,242.95,242.83,7.06]
[1757813069660,0.85929057,242.95,242.83,13.94522215]
[1757813070366,0.85929057,242.95,242.84,7.06]
[1757813070566,7.05,242.97,242.84,7.06]
[1757813070769,0.85929057,242.96,242.84,7.06]
[1757813072167,0.85929057,242.96,242.85,7.06]
[1757813072368,0.85929057,242.96,242.85,7.91929057]
[1757813074570,7.05,243.01,242.88,0.85929057]
[1757813074772,7.90929057,243.01,242.89,7.06]
[1757813075274,7.90929057,242.98,242.89,7.06]
[1757813078270,7.90929057,242.98,242.85,0.85929057]
[1757813078473,7.90929057,242.98,242.85,7.91929057]
[1757813078773,0.85929057,242.95,242.85,7.91929057]
[1757813080775,7.90929057,242.98,242.85,7.91929057]
[1757813080973,7.05,243.03,242.89,7.06]
[1757813081376,0.85929057,243.02,242.89,7.06]
[1757813081770,0.85929057,243.02,242.89,3.7033]
[1757813081977,0.85929057,243.02,242.9,7.06]
[1757813082476,0.85929057,242.99,242.9,7.06]
[1757813082677,7.05,242.98,242.9,7.06]
[1757813084478,0.85929057,242.99,242.9,7.06]
[1757813085377,0.85929057,242.96,242.9,7.06]
[1757813090581,80.71186628,243.06,242.9,7.06]
[1757813090778,0.85929057,243.02,242.9,7.91929057]
[1757813092282,0.85929057,243.02,242.91,6.91]
[1757813092682,7.41929057,243.02,242.91,6.91]
[1757813092983,7.41929057,242.99,242.91,6.91]
[1757813093185,6.56,242.95,242.86,6.91]
[1757813093476,0.85929057,242.96,242.86,6.91]
[1757813099182,6.99,243.05,242.89,0.85929057]
[1757813099382,0.85929057,243.09,242.96,6.84]
[1757813100883,0.71604938,243.22,243.05,0.85929057]
[1757813101081,6.99,243.2,243.06,6.84]
[1757813101284,3.69597868,243.19,243.06,6.84]
[1757813101486,0.85929057,243.19,243.06,6.84]
[1757813101685,6.99,243.2,243.08,0.85929057]
[1757813101885,284.32929057,243.24,243.12,6.84]
[1757813102086,7.84929057,243.24,243.12,6.84]
[1757813102489,0.85929057,243.21,243.12,19.12655626]
[1757813103103,0.85929057,243.18,243.12,19.12655626]
[1757813103303,6.99,243.14,243.02,32.13741565]
[1757813103503,6.99,243.14,243.01,6.88522215]
[1757813103504,0.85929057,243.1,243.03,6.84]
[1757813103701,0.85929057,243.07,242.99,6.84]
[1757813105805,0.85929057,243.1,242.99,6.84]
[1757813106000,0.85929057,243.1,243.01,0.85929057]
[1757813106201,6.99,243.14,243.01,0.85929057]
[1757813106202,0.85929057,243.13,243.02,6.84]
[1757813106399,0.85929057,243.13,243.05,6.84]
[1757813106804,6.99,243.19,243.07,0.85929057]
[1757813107006,7.84929057,243.19,243.08,6.84]
[1757813107204,0.85929057,243.19,243.11,6.84]
[1757813107804,6.99,243.23,243.11,6.84]
[1757813107805,0.85929057,243.22,243.11,6.84]
[1757813108505,6.99,243.23,243.11,6.84]
[1757813108901,2.23059921,243.28,243.12,6.84]
[1757813109106,6.99,243.27,243.12,6.84]
[1757813110107,6.99,243.27,243.06,7.32]
[1757813110108,2.23059921,243.18,243.03,6.84]
[1757813110305,6.99,243.17,243.03,6.84]
[1757813110504,6.99,243.22,243.03,10.5412]
[1757813110708,6.99,243.22,243.05,6.84]
[1757813111308,9.22059921,243.27,243.07,6.84]
[1757813111914,9.22059921,243.27,243.09,6.84]
[1757813112613,10.51223605,243.27,243.09,6.84]
[1757813113109,6.99,243.27,243.09,6.84]
[1757813113712,6.99,243.27,243.06,6.84]
[1757813114211,6.99,243.27,243.12,6.84]
[1757813114709,6.99,243.27,243.13,3.6996]
[1757813114914,31.95223605,243.32,243.14,6.84]
[1757813119224,10.51223605,243.32,243.14,6.84]
[1757813119914,6.99,243.32,243.14,6.84]
[1757813120815,6.99,243.37,243.16,6.84]
[1757813121322,6.99,243.37,243.21,6.84]
[1757813121518,6.99,243.37,243.23,6.84]
[1757813121815,3.52223605,243.47,243.23,6.84]
[1757813122123,6.99,243.46,243.23,6.84]
[1757813122619,6.99,243.46,243.24,6.84]
[1757813123021,6.99,243.46,243.26,6.84]
[1757813123215,6.99,243.46,243.31,6.84]
[1757813123813,6.99,243.46,243.25,3.52223605]
[1757813123814,6.99,243.46,243.32,3.6968]
[1757813124015,6.99,243.46,243.33,6.84]
[1757813124827,283.23,243.52,243.35,6.84]
[1757813126424,6.99,243.52,243.36,10.56]
[1757813126820,6.99,243.52,243.37,6.84]
[1757813127618,6.99,243.52,243.37,12.48704124]
[1757813127823,6.99,243.52,243.38,6.7]
[1757813133420,10.51223605,243.52,243.37,12.22169602]
[1757813133629,6.8,243.46,243.32,6.7]
[1757813134329,6.8,243.4,243.17,6.7]
[1757813134526,6.8,243.35,243.17,12.30868676]
[1757813134724,6.8,243.4,243.18,6.7]
[1757813136331,6.8,243.4,243.24,6.7]
[1757813136528,6.8,243.4,243.25,6.7]
[1757813137926,6.8,243.4,243.26,6.7]
[1757813139543,6.8,243.4,243.26,92.46]
[1757813140634,6.8,243.4,243.26,107.8]
[1757813140837,6.8,243.4,243.26,6.7]
[1757813141027,6.8,243.4,243.26,110.06]
[1757813141337,6.8,243.4,243.26,6.7]
[1757813145035,6.8,243.4,243.27,6.7]
[1757813145235,6.8,243.45,243.27,6.7]
[1757813146237,6.8,243.45,243.31,6.7]
[1757813146638,6.8,243.45,243.32,3.6967]
[1757813146839,6.8,243.45,243.33,6.7]
[1757813147440,6.8,243.45,243.35,6.7]
[1757813156552,6.83,243.5,243.37,6.94]
[1757813158154,6.83,243.5,243.38,3.6958]
[1757813159252,6.83,243.5,243.39,7.07]
[1757813160956,6.83,243.5,243.4,3.6954]
[1757813161155,6.83,243.5,243.39,7.07]
[1757813162360,6.94,243.6,243.39,7.07]
[1757813162551,3.52223605,243.61,243.39,7.07]
[1757813162552,6.94,243.58,243.39,7.07]
[1757813162757,6.94,243.56,243.39,7.07]
[1757813162961,6.94,243.56,243.41,7.07]
[1757813164160,6.94,243.56,243.42,3.6952]